bitfinex/quotes_ETHUSD_20250214
["timestamp","ask_amount","ask_price","bid_price","bid_amount"]
[1739503633585,9.02868,2696.4,2696.3,0.17439659]
[1739503633916,9.02868,2696.4,2695.9,0.7578]
[1739503634079,11.08317846,2696.4,2695.9,0.7578]
[1739503634282,11.08317846,2696.4,2696.0,0.17439659]
[1739503634496,14.79195846,2696.4,2696.0,0.17439659]
[1739503634707,11.08317846,2696.4,2696.0,0.17439659]
[1739503635014,3.70879,2696.3,2696.0,0.17439659]
[1739503635990,5.32,2696.4,2696.0,0.17439659]
[1739503636288,5.32,2696.4,2696.0,3.88349659]
[1739503638017,5.32,2696.4,2696.1,3.70904]
[1739503638315,5.32,2696.4,2696.3,0.7835]
[1739503638678,5.32,2696.4,2696.3,0.95789658]
[1739503639443,5.32,2696.4,2696.3,0.17439658]
[1739503639605,9.02855,2696.5,2696.3,0.17439658]
[1739503639792,9.02855,2696.5,2696.1,0.8295]
[1739503639980,9.02855,2696.5,2696.4,0.17431482]
[1739503640182,9.02855,2696.5,2696.1,0.8295]
[1739503640616,9.02855,2696.5,2696.2,0.17431482]
[1739503642386,5.32,2696.5,2696.2,0.17431482]
[1739503642717,5.32,2696.5,2696.2,4.3545123]
[1739503642922,5.32,2696.5,2696.2,8.0633523]
[1739503643131,5.32,2696.5,2696.2,4.3544423]
[1739503643695,5.32,2696.5,2696.2,3.88315482]
[1739503645641,6.90270746,2696.6,2696.2,3.88315482]
[1739503647334,6.90270746,2696.6,2696.2,7.59198482]
[1739503647535,6.90270746,2696.6,2696.3,3.70875]
[1739503647925,6.90270746,2696.6,2696.2,3.70883]
[1739503648327,6.90270746,2696.6,2696.3,0.17431482]
[1739503648526,6.90270746,2696.6,2696.2,3.70883]
[1739503648729,6.90270746,2696.6,2696.3,0.17431482]
[1739503648916,6.90270746,2696.6,2696.2,3.70883]
[1739503649116,6.90270746,2696.6,2696.3,0.17431482]
[1739503649329,6.90270746,2696.6,2696.2,7.41767]
[1739503649513,6.90270746,2696.6,2696.3,0.17431482]
[1739503649714,6.90270746,2696.6,2696.2,7.41767]
[1739503649916,6.90270746,2696.6,2696.3,0.17431482]
[1739503650240,4.47012,2696.5,2695.9,3.70925]
[1739503650437,6.70112,2696.5,2696.4,0.174129]
[1739503650596,3.70875,2696.4,2695.8,4.54188]
[1739503650828,8.28382746,2696.5,2695.8,4.54188]
[1739503650829,0.7659,2696.2,2695.8,3.70938]
[1739503651158,12.02585,2696.2,2695.6,8.19035]
[1739503651357,8.3169,2696.2,2695.6,4.48066]
[1739503651665,8.3169,2696.2,2695.7,3.70952]
[1739503652125,8.3169,2696.2,2695.6,0.771]
[1739503652323,1.58270746,2696.0,2695.9,3.70933]
[1739503652528,9.89960746,2696.2,2695.9,3.70933]
[1739503653791,8.3169,2696.2,2695.9,3.70933]
[1739503655175,5.32,2696.2,2696.0,3.70909]
[1739503655329,5.59,2696.2,2696.0,8.1909]
[1739503655870,5.59,2696.2,2696.1,3.70906]
[1739503658148,5.32,2696.2,2696.1,3.70906]
[1739503658351,5.32,2696.2,2696.1,4.47746]
[1739503658555,5.32,2696.7,2696.2,3.0]
[1739503658739,5.32,2696.7,2695.5,3.70979]
[1739503658740,5.32,2696.7,2696.5,3.70847]
[1739503659742,5.32,2696.8,2696.7,0.8005]
[1739503660053,5.32,2696.9,2696.7,4.50873]
[1739503660240,5.32,2696.9,2696.7,4.68281441]
[1739503661383,5.32,2696.9,2696.7,0.17408441]
[1739503661745,5.32,2696.9,2696.5,4.48396]
[1739503661959,5.32,2696.9,2696.6,0.17408441]
[1739503663691,5.32,2696.9,2696.7,3.7082]
[1739503664196,5.32,2696.9,2696.8,0.17408441]
[1739503664556,5.32,2696.9,2696.7,3.7082]
[1739503664757,5.32,2696.9,2696.8,0.17388376]
[1739503665457,5.32,2696.9,2696.7,3.7082]
[1739503665863,5.32,2696.9,2696.8,0.17388376]
[1739503666495,5.32,2696.9,2696.6,3.70827]
[1739503666763,5.32,2696.9,2696.7,0.17388376]
[1739503667075,5.32,2696.9,2696.5,4.48391]
[1739503667482,5.32,2696.9,2696.6,0.17388376]
[1739503668012,0.7745,2696.8,2696.6,0.17388376]
[1739503668211,0.7745,2696.8,2696.4,6.70864]
[1739503668394,0.7745,2696.8,2696.7,0.17388376]
[1739503668580,2.004848,2696.8,2696.4,6.70864]
[1739503668761,7.64890604,2696.8,2696.7,0.17388376]
[1739503668967,2.231,2696.7,2696.2,3.7089]
[1739503669165,5.93924,2696.7,2696.1,3.70899]
[1739503669396,4.48289,2696.6,2696.1,3.70899]
[1739503669600,0.7745,2696.6,2696.2,3.7089]
[1739503669802,1.3433361,2696.6,2696.2,3.7089]
[1739503670101,1.3433361,2696.6,2696.1,3.70899]
[1739503671264,1.3433361,2696.6,2696.1,3.70898]
[1739503671499,1.3433361,2696.6,2696.2,3.70882]
[1739503671703,0.7745,2696.6,2696.2,3.70882]
[1739503673350,0.7745,2696.6,2696.1,3.70898]
[1739503673623,6.71389,2696.6,2696.1,3.70898]
[1739503674379,3.0055,2696.6,2696.1,3.70898]
[1739503674611,6.71389,2696.6,2696.1,3.70898]
[1739503674817,6.71389,2696.6,2696.2,0.17363854]
[1739503675028,8.6597386,2696.6,2696.2,0.17363854]
[1739503675170,10.2713486,2696.6,2696.2,0.17363854]
[1739503675505,10.2713486,2696.6,2696.2,3.88247854]
[1739503677116,0.27,2696.5,2696.2,3.88247854]
[1739503677724,0.8137,2696.4,2696.2,0.17363854]
[1739503678026,0.8137,2696.4,2696.2,3.70884]
[1739503678233,2.501,2696.5,2696.3,0.17401754]
[1739503678639,2.501,2696.5,2696.3,3.70877]
[1739503678862,2.501,2696.5,2696.4,0.17400268]
[1739503679859,2.501,2696.5,2696.0,3.70911]
[1739503680161,2.501,2696.5,2696.1,3.709]
[1739503680356,2.501,2696.5,2696.0,3.70911]
[1739503680504,2.501,2696.5,2696.2,3.70887]
[1739503680705,2.501,2696.5,2696.1,3.70898]
[1739503680978,7.07306,2696.5,2696.0,3.70914]
[1739503681243,4.53495,2696.4,2696.2,0.17400268]
[1739503681450,4.53495,2696.4,2696.1,0.17404727]
[1739503681601,4.53495,2696.4,2695.9,6.7093]
[1739503681803,0.8263,2696.4,2696.2,0.17404727]
[1739503682025,2.8356986,2696.4,2695.9,6.70928]
[1739503682268,2.8356986,2696.4,2696.3,0.17404727]
[1739503682409,2.8356986,2696.4,2695.9,6.70928]
[1739503682610,2.8356986,2696.4,2696.3,0.17411416]
[1739503682838,2.8356986,2696.4,2696.0,3.70913]
[1739503683011,0.8263,2696.4,2696.3,0.17411416]
[1739503683544,0.8263,2696.4,2696.1,3.70904]
[1739503684018,0.8263,2696.4,2696.2,0.17408443]
[1739503684226,0.8263,2696.4,2696.2,3.88293443]
[1739503685116,0.8263,2696.4,2696.2,0.17408443]
[1739503687350,5.32,2696.4,2696.2,5.46900387]
[1739503687503,5.32,2696.4,2696.2,8.41863443]
[1739503687708,5.32,2696.4,2696.2,4.70971443]
[1739503687907,2.231,2696.3,2696.2,4.70971443]
[1739503688107,5.32,2696.4,2696.2,8.41855443]
[1739503688331,5.32,2696.4,2696.3,3.70878]
[1739503688557,5.32,2696.4,2696.3,4.72471384]
[1739503693179,0.8242,2696.6,2696.4,3.70862]
[1739503693896,0.8242,2696.6,2696.5,0.1678704]
[1739503694278,9.29799,2696.9,2696.5,0.1678704]
[1739503694484,0.7824,2696.8,2696.5,0.1678704]
[1739503694650,0.7824,2696.8,2696.5,3.8763604]
[1739503696591,0.7824,2696.8,2696.5,0.1678704]
[1739503698384,2.231,2696.7,2696.5,0.1678704]
[1739503698589,0.7824,2696.8,2696.5,0.1678704]
[1739503698900,2.23,2696.6,2696.5,0.1678704]
[1739503699192,7.27507,2696.6,2696.0,7.41821]
[1739503699386,7.27507,2696.6,2696.0,3.7091]
[1739503699688,3.81289311,2696.5,2696.0,7.41821]
[1739503699856,3.81289311,2696.5,2696.1,0.16763262]
[1739503700059,5.60152542,2696.5,2696.1,0.16763262]
[1739503700662,1.58289311,2696.3,2696.1,0.16763262]
[1739503700952,1.58289311,2696.3,2695.7,3.8304]
[1739503700953,6.1031,2696.2,2695.7,4.53989]
[1739503701992,6.1031,2696.2,2695.7,0.8304]
[1739503702357,6.1031,2696.2,2695.7,4.53992]
[1739503702558,6.1031,2696.2,2695.7,0.8304]
[1739503702796,6.1031,2696.2,2695.7,4.53997]
[1739503703183,6.1031,2696.2,2695.8,3.70939]
[1739503703364,6.1031,2696.2,2695.7,4.53997]
[1739503703696,6.1031,2696.2,2695.8,4.05697028]
[1739503704192,6.1031,2696.2,2695.8,0.34758028]
[1739503704354,6.1031,2696.2,2695.8,4.05694028]
[1739503704556,6.1031,2696.2,2695.9,0.16798195]
[1739503707504,0.83331,2696.1,2695.9,0.16798195]
[1739503707664,6.15331,2696.1,2695.7,3.70951]
[1739503707864,5.32,2696.1,2696.0,0.16795221]
[1739503708388,5.32,2696.1,2695.7,3.70951]
[1739503708697,8.1,2696.1,2696.0,0.16795221]
[1739503708898,8.1,2696.1,2695.6,6.7097]
[1739503709201,8.1,2696.1,2696.0,0.16795221]
[1739503709375,9.35921,2696.1,2695.6,6.7097]
[1739503709574,9.35921,2696.1,2695.7,0.16834611]
[1739503712422,9.35921,2696.1,2695.7,3.87793611]
[1739503712629,8.1,2696.1,2695.7,3.87793611]
[1739503712776,8.1,2696.1,2695.7,0.16834611]
[1739503714613,8.1,2696.1,2695.7,3.87790611]
[1739503714848,7.55,2696.1,2695.7,3.87785611]
[1739503716414,5.32,2696.1,2695.7,3.87785611]
[1739503716620,5.32,2696.1,2695.8,3.70939]
[1739503717333,5.32,2696.1,2695.9,0.16838328]
[1739503717622,5.32,2696.1,2695.9,3.87764328]
[1739503718116,5.32,2696.1,2695.9,7.58690328]
[1739503718324,5.32,2696.1,2696.0,3.70919]
[1739503718647,5.32,2696.1,2696.0,0.16840559]
[1739503718938,5.32,2696.1,2696.0,3.87759559]
[1739503722743,5.32,2696.4,2696.0,3.87759559]
[1739503723347,5.32,2696.4,2696.2,3.70884]
[1739503723762,5.32,2696.6,2696.3,0.16832384]
[1739503724056,5.32,2696.6,2696.4,3.70863]
[1739503724254,5.32,2696.6,2696.4,3.87695384]
[1739503728628,5.59,2696.7,2696.4,3.87695384]
[1739503729662,5.59,2696.7,2696.5,3.70848]
[1739503729969,5.59,2696.7,2696.5,3.87653624]
[1739503730859,5.59,2696.7,2696.5,0.16805624]
[1739503733767,5.59,2696.7,2696.5,3.87654624]
[1739503734089,5.32,2696.7,2696.5,3.87654624]
[1739503734232,5.32,2696.7,2696.5,0.16805624]
[1739503734432,5.32,2696.7,2696.6,3.70837]
[1739503734753,7.6860373,2696.9,2696.6,3.70837]
[1739503734955,7.6860373,2696.9,2696.6,3.87612153]
[1739503735582,6.1034,2696.9,2696.7,3.70813]
[1739503735742,5.32,2696.9,2696.7,4.46655515]
[1739503736064,5.32,2696.9,2696.8,0.16752116]
[1739503736222,6.9026373,2696.9,2696.8,0.16752116]
[1739503736423,6.9026373,2696.9,2696.5,6.70848]
[1739503736654,6.9026373,2696.9,2696.8,0.16752116]
[1739503736956,6.9026373,2696.9,2696.5,6.70848]
[1739503737159,6.9026373,2696.9,2696.8,0.16752116]
[1739503737370,6.9026373,2696.9,2696.5,6.70848]
[1739503737528,6.9026373,2696.9,2696.8,0.16752116]
[1739503737761,6.9026373,2696.9,2696.5,6.70848]
[1739503738063,6.9026373,2696.9,2696.6,0.16752116]
[1739503740173,10.6106373,2696.9,2696.6,0.16752116]
[1739503740357,1.83886373,2696.8,2696.6,0.16752116]
[1739503740734,0.7778,2696.8,2696.6,0.16752116]
[1739503740928,0.7778,2696.8,2696.4,3.0]
[1739503741162,0.7778,2696.8,2696.7,0.16741714]
[1739503741468,0.7778,2696.8,2688.6,1.55344816]
[1739503741469,3.005,2696.7,2696.1,3.70897]
[1739503741631,1.5826373,2696.5,2696.1,3.70897]
[1739503741828,1.5826373,2696.5,2696.0,3.70919]
[1739503742033,0.775,2696.4,2696.0,3.70919]
[1739503742231,0.775,2696.4,2696.1,3.70905]
[1739503742437,0.775,2696.4,2696.1,7.4181]
[1739503742661,0.775,2696.6,2696.2,3.7089]
[1739503743866,0.775,2696.6,2696.3,3.70876]
[1739503744172,3.0106,2696.8,2696.3,4.49209]
[1739503744359,4.79850873,2696.8,2696.3,4.49209]
[1739503744557,0.7806,2696.8,2696.5,3.7085]
[1739503746193,6.9026373,2696.9,2696.5,3.7085]
[1739503747196,5.32,2696.9,2696.6,3.70826]
[1739503747397,5.32,2696.9,2696.5,3.7085]
[1739503748575,6.9026373,2696.9,2696.5,3.7085]
[1739503748770,6.9026373,2696.9,2696.3,4.49213]
[1739503748983,10.6106273,2696.9,2696.3,4.49209]
[1739503749208,1.5826373,2696.7,2696.3,4.49209]
[1739503749711,1.5826373,2696.7,2696.4,0.16757315]
[1739503752759,6.9026373,2696.9,2696.4,3.87611315]
[1739503755159,6.9026373,2696.9,2696.5,3.70847]
[1739503755634,6.9026373,2696.9,2696.6,0.16757315]
[1739503756161,11.69018284,2696.9,2696.6,0.16757315]
[1739503756664,15.39822284,2696.9,2696.7,0.16757315]
[1739503756959,6.73969,2696.8,2696.7,0.16757315]
[1739503757148,4.50988,2696.7,2696.1,3.70901]
[1739503757335,1.5826373,2696.6,2696.1,3.70901]
[1739503757718,4.51018,2696.5,2695.8,0.7711]
[1739503757918,1.5826373,2696.4,2696.0,3.0]
[1739503758122,1.5826373,2696.4,2696.0,6.70918]
[1739503759328,1.5826373,2696.4,2696.1,3.70906]
[1739503760341,1.5826373,2696.4,2696.0,6.70919]
[1739503760738,5.2913373,2696.4,2695.8,0.7711]
[1739503761067,1.5826373,2696.2,2695.8,6.70946]
[1739503761255,0.8152,2696.3,2695.9,7.41849]
[1739503761771,0.8152,2696.3,2695.9,3.70924]
[1739503762538,0.8152,2696.3,2696.2,3.70892]
[1739503762742,5.32,2696.5,2696.3,3.70878]
[1739503762958,5.32,2696.5,2696.4,3.70864]
[1739503763139,2.3786373,2696.8,2696.4,0.819946]
[1739503763347,2.3786373,2696.8,2696.3,8.19946]
[1739503763549,2.3786373,2696.8,2696.4,3.70863]
[1739503763962,1.5826373,2696.6,2696.2,3.0]
[1739503764491,1.5826373,2696.6,2696.2,6.70891]
[1739503764690,1.5826373,2696.6,2696.3,0.16761035]
[1739503765047,1.5826373,2696.6,2696.2,6.70891]
[1739503765247,0.8174,2696.5,2696.1,3.70897]
[1739503765788,0.8174,2696.5,2696.2,0.16761035]
[1739503765996,4.52601,2696.5,2696.2,0.16761035]
[1739503766395,4.52599,2696.5,2696.0,3.0]
[1739503766592,4.52599,2696.5,2696.3,0.16761035]
[1739503766798,5.201589,2696.5,2695.9,3.0]
[1739503766973,4.52599,2696.5,2696.4,0.16761035]
[1739503767173,4.52599,2696.5,2696.0,3.70919]
[1739503767375,9.84599,2696.5,2696.4,0.16779611]
[1739503767574,6.1374,2696.5,2696.1,3.70902]
[1739503767769,6.1374,2696.5,2696.4,0.16779611]
[1739503767969,6.1374,2696.5,2696.1,3.70902]
[1739503768458,6.1374,2696.5,2696.2,0.16784813]
[1739503768899,11.29928264,2696.5,2696.2,0.16784813]
[1739503769270,11.29928264,2696.5,2695.9,6.70925]
[1739503769271,15.00790264,2696.5,2695.9,6.70925]
[1739503769459,7.59075264,2696.5,2695.9,6.70925]
[1739503769659,6.1374,2696.5,2696.0,3.70911]
[1739503770007,6.1374,2696.5,2696.0,3.87695813]
[1739503770776,6.1374,2696.5,2696.1,3.70904]
[1739503771176,6.1374,2696.5,2696.1,3.70896]
[1739503771382,6.1374,2696.5,2696.2,0.16784813]
[1739503771807,8.03502467,2696.5,2696.2,0.16784813]
[1739503772008,11.74354467,2696.5,2696.2,0.16784813]
[1739503772213,11.74354467,2696.5,2695.9,6.70925]
[1739503772372,11.74354467,2696.5,2696.3,0.16784813]
[1739503772571,10.99794467,2696.5,2696.0,3.70918]
[1739503772876,10.99794467,2696.5,2696.2,3.70889]
[1739503772877,5.3918,2696.5,2696.2,3.70889]
[1739503773092,5.32,2696.5,2696.2,3.70889]
[1739503773286,8.78116665,2696.7,2696.2,3.70889]
[1739503773494,8.78116665,2696.7,2696.3,0.16784813]
[1739503773807,5.589,2696.7,2696.3,0.16784813]
[1739503774007,5.589,2696.7,2696.2,3.70889]
[1739503774211,5.589,2696.7,2696.3,0.452499]
[1739503774391,5.589,2696.7,2696.4,3.70863]
[1739503774915,5.589,2696.7,2696.5,0.1678184]
[1739503775690,6.3918,2696.7,2696.5,0.1678184]
[1739503777319,6.1228,2696.7,2696.5,0.1678184]
[1739503777530,5.32,2696.7,2696.5,3.8763184]
[1739503779232,6.3668,2696.9,2696.5,3.8762384]
[1739503779439,6.3668,2696.9,2696.6,3.70835]
[1739503779732,6.3668,2696.9,2696.7,0.16762519]
[1739503780123,6.3668,2696.9,2696.5,3.70842]
[1739503780294,6.3668,2696.9,2696.8,0.16762519]
[1739503780493,6.3668,2696.9,2696.5,3.70842]
[1739503780695,6.3668,2696.9,2696.8,0.16762519]
[1739503780933,6.3668,2696.9,2696.5,3.70841]
[1739503781231,6.3668,2696.9,2696.6,3.70834]
[1739503781596,6.3668,2696.9,2696.7,0.16762519]
[1739503781794,6.3668,2696.9,2696.5,3.70841]
[1739503782132,6.3668,2696.9,2696.6,0.16742455]
[1739503784731,10.07483,2696.9,2696.6,0.16742455]
[1739503784935,11.99531467,2696.9,2696.6,0.16742455]
[1739503785112,11.99531467,2696.9,2696.4,6.70864]
[1739503785315,11.99527467,2696.9,2696.7,0.16737997]
[1739503785528,11.99527467,2696.9,2696.4,6.70864]
[1739503785729,1.54740045,2696.7,2696.4,6.70864]
[1739503785897,1.54740045,2696.7,2696.3,3.0]
[1739503786097,0.8248,2696.6,2696.3,6.70869]
[1739503786409,0.8248,2696.6,2696.3,7.832051]
[1739503787341,0.8248,2696.6,2696.3,1.123361]
[1739503787554,1.54740045,2696.5,2696.1,3.70897]
[1739503787705,1.79700045,2696.5,2696.1,3.70897]
[1739503788849,1.79700045,2696.5,2695.9,4.53145]
[1739503789028,1.79700045,2696.5,2696.0,3.0]
[1739503789238,0.8117,2696.4,2696.0,6.70916]
[1739503789620,1.54740045,2696.3,2696.0,3.0]
[1739503789925,1.54740045,2696.1,2695.7,3.70955]
[1739503790173,0.8117,2696.0,2695.7,4.976488]
[1739503790375,0.8117,2696.0,2695.7,3.70955]
[1739503791896,2.09740045,2695.9,2695.3,3.71015]
[1739503792209,2.35910045,2695.6,2695.3,3.71015]
[1739503792755,2.35910045,2695.6,2695.4,3.70997]
[1739503793097,2.35910045,2695.6,2695.5,3.70988]
[1739503793297,0.8117,2695.6,2695.5,3.70988]
[1739503793892,0.8117,2695.6,2695.3,7.42022]
[1739503794091,0.8117,2695.6,2695.3,8.31975925]
[1739503794293,0.8117,2695.6,2695.4,3.70996]
[1739503794719,0.8117,2695.6,2695.5,0.16441031]
[1739503795229,0.8117,2695.6,2695.4,3.71001]
[1739503795436,0.8117,2695.6,2695.5,0.16441031]
[1739503796178,0.8117,2695.6,2695.3,4.60960925]
[1739503796416,0.819,2695.9,2695.5,0.16441031]
[1739503796623,0.755,2695.8,2695.5,3.70978]
[1739503796780,0.755,2695.8,2695.6,0.16441031]
[1739503796980,6.075,2695.8,2695.6,0.16441031]
[1739503797436,5.32,2695.8,2695.6,3.87406031]
[1739503799370,5.32,2695.8,2695.6,4.33910634]
[1739503800335,5.32,2695.8,2695.7,3.70961]
[1739503800556,5.32,2695.8,2695.6,4.33910634]
[1739503801075,5.32,2695.8,2695.6,8.04876634]
[1739503801282,5.32,2695.8,2695.7,3.70961]
[1739503801505,5.32,2695.8,2695.7,4.59212163]
[1739503801805,5.32,2695.8,2695.7,5.34862163]
[1739503801998,5.32,2695.8,2695.7,8.34862163]
[1739503802610,0.2496,2696.5,2696.2,3.70881]
[1739503802820,0.2496,2696.5,2696.2,8.23574]
[1739503803104,0.2496,2696.5,2696.4,3.70864]
[1739503813939,0.2496,2696.5,2696.4,4.51554]
[1739503814095,0.2496,2696.5,2696.4,7.51554]
[1739503815210,0.7627,2697.8,2697.4,3.7072]
[1739503815408,5.32,2697.9,2697.7,3.70686]
[1739503816326,5.32,2697.9,2697.7,3.70686]
[1739503816933,5.32,2697.9,2697.6,3.70698]
[1739503817534,5.32,2697.9,2697.7,3.70683]
[1739503817752,5.32,2697.9,2697.7,0.16409874]
[1739503819396,5.32,2697.9,2697.7,3.87084874]
[1739503819597,5.32,2697.9,2697.7,0.16409874]
[1739503820834,5.589,2698.0,2697.7,0.16409874]
[1739503822993,5.589,2698.0,2697.7,3.87092874]
[1739503823338,5.589,2698.0,2697.8,3.70671]
[1739503823850,5.32,2698.0,2697.9,0.16217849]
[1739503824399,6.152,2698.2,2697.9,0.54906734]
[1739503824568,0.8085,2698.3,2698.1,3.70628]
[1739503824955,0.8085,2698.3,2698.2,0.16217108]
[1739503825156,5.32,2698.4,2698.2,3.86834108]
[1739503825552,5.32,2698.5,2698.4,3.70589]
[1739503825937,0.269,2698.8,2698.6,3.7056]
[1739503826355,0.269,2698.8,2698.7,0.16204511]
[1739503826570,5.589,2698.8,2698.7,0.16204511]
[1739503827083,5.32,2698.8,2698.7,0.16204511]
[1739503827246,5.32,2698.8,2698.7,3.86752511]
[1739503829894,5.589,2699.2,2698.9,3.70519]
[1739503830097,0.8255,2699.3,2698.9,3.70508]
[1739503830394,5.32,2699.4,2699.1,3.70484]
[1739503830556,6.1455,2699.5,2699.1,3.70484]
[1739503830756,6.1455,2699.5,2699.2,0.16083047]
[1739503830951,6.15,2699.6,2699.3,3.70462]
[1739503831190,6.1164,2700.0,2699.5,3.70438]
[1739503831397,6.1164,2700.0,2699.6,0.16057873]
[1739503831596,3.70406,2699.8,2699.1,3.70482]
[1739503831786,3.70406,2699.8,2699.2,0.16056392]
[1739503832008,3.70406,2699.8,2699.2,3.86535392]
[1739503832166,3.70406,2699.8,2699.2,0.16056392]
[1739503832496,3.70406,2699.8,2699.2,3.86533392]
[1739503832692,3.70414,2699.7,2699.2,0.16056392]
[1739503832930,3.70406,2699.8,2699.2,0.16056392]
[1739503833273,3.70406,2699.8,2699.2,3.86533392]
[1739503833496,3.70406,2699.8,2699.2,0.16056392]
[1739503833497,3.70466,2699.3,2699.2,0.16056392]
[1739503833710,4.46233,2699.5,2699.2,0.16056392]
[1739503834013,3.73835427,2699.4,2699.3,0.16029745]
[1739503834167,17.52517427,2699.4,2699.3,0.16029745]
[1739503834363,3.70519,2699.0,2698.4,0.7804]
[1739503834619,3.70518,2699.0,2698.5,0.15471053]
[1739503835181,4.51062,2698.9,2698.5,0.15471053]
[1739503835411,0.8053,2698.9,2698.5,0.15471053]
[1739503835983,3.70537,2698.8,2698.5,0.15471053]
[1739503836279,3.70537,2698.8,2698.3,3.0]
[1739503836503,3.70537,2698.8,2698.6,0.1550807]
[1739503836719,0.8053,2698.9,2698.3,6.70595]
[1739503836900,0.8053,2698.9,2698.7,0.1550807]
[1739503837107,0.8053,2698.9,2698.3,7.87477941]
[1739503837302,0.8053,2698.9,2698.8,0.1550807]
[1739503837506,0.8053,2698.9,2698.3,4.16882941]
[1739503837681,0.8053,2698.9,2698.8,0.1550807]
[1739503838182,0.8053,2698.9,2698.4,3.70588]
[1739503838515,0.8053,2698.9,2698.5,3.8608407]
[1739503838704,6.1253,2698.9,2698.5,3.8608407]
[1739503842219,6.1253,2698.9,2698.5,0.1550807]
[1739503842392,6.1253,2698.9,2698.6,3.70552]
[1739503842720,6.1253,2698.9,2698.7,0.15490299]
[1739503843148,6.1253,2698.9,2698.4,7.41163]
[1739503843369,6.1253,2698.9,2698.8,0.15490299]
[1739503843515,6.1253,2698.9,2698.4,3.70581]
[1739503843866,3.7057,2698.6,2698.1,0.8106]
[1739503844016,3.7057,2698.6,2698.5,0.15490299]
[1739503844209,0.8066,2698.5,2697.9,0.8088]
[1739503844536,3.70594,2698.4,2698.0,0.15504369]
[1739503844867,5.32,2698.4,2698.0,0.15504369]
[1739503845010,4.52201,2698.1,2698.0,0.15504369]
[1739503845211,3.70694,2697.7,2697.1,3.70765]
[1739503845427,3.70694,2697.7,2697.2,0.14975465]
[1739503846031,3.70694,2697.7,2697.2,3.14975465]
[1739503846233,3.70694,2697.7,2697.2,0.14975465]
[1739503846415,3.70694,2697.7,2697.2,0.61096512]
[1739503847181,3.70694,2697.7,2697.2,3.61096512]
[1739503847315,0.8083,2697.6,2697.2,0.14975465]
[1739503847655,0.8083,2697.6,2696.7,3.70821]
[1739503847656,3.70741,2697.3,2696.7,3.70821]
[1739503847843,3.70715,2697.5,2697.3,0.15061912]
[1739503848017,3.70715,2697.5,2696.8,3.70799]
[1739503848216,7.16481,2697.5,2696.9,0.88670687]
[1739503848417,3.70729,2697.4,2696.9,0.88670687]
[1739503848644,3.45755,2697.5,2696.9,0.88670687]
[1739503850147,3.45755,2697.5,2696.9,4.59454687]
[1739503850773,9.31665427,2697.6,2697.0,3.7078]
[1739503850938,6.1283,2697.6,2697.1,0.45945069]
[1739503851134,6.1283,2697.6,2697.1,4.16709069]
[1739503851340,6.1283,2697.6,2697.2,0.14508687]
[1739503851744,5.32,2697.6,2697.3,3.70729]
[1739503851933,3.70725,2697.5,2697.2,0.14508687]
[1739503852261,3.70725,2697.5,2696.9,4.44949]
[1739503852481,5.32,2697.6,2697.3,0.14532344]
[1739503852687,9.02701,2697.6,2697.0,3.70782]
[1739503852832,9.02701,2697.6,2697.4,0.14532344]
[1739503853024,9.02701,2697.6,2696.9,3.70787]
[1739503853225,3.70715,2697.5,2697.0,0.14532344]
[1739503853465,6.0706,2697.4,2697.0,0.14532344]
[1739503853640,3.70768,2697.1,2697.0,0.14532344]
[1739503853841,3.70768,2697.1,2696.5,4.46506]
[1739503854167,3.70768,2697.1,2697.0,0.14520515]
[1739503854364,3.70754,2697.2,2696.3,3.70873]
[1739503854554,3.70792,2697.0,2696.4,0.51895807]
[1739503854751,3.70792,2697.0,2696.4,0.66416322]
[1739503854957,0.7506,2696.9,2696.4,0.14520515]
[1739503855167,3.70832,2696.7,2696.4,0.14520515]
[1739503855371,3.70813,2696.8,2696.2,3.0]
[1739503855372,3.70839,2696.6,2696.2,3.0]
[1739503855530,3.70839,2696.6,2696.5,0.14638754]
[1739503855726,3.70839,2696.6,2696.2,3.0]
[1739503855926,3.70839,2696.6,2696.5,0.14680163]
[1739503856138,5.32,2696.7,2696.2,3.0]
[1739503856464,5.32,2696.7,2696.4,3.70862]
[1739503857059,5.32,2696.7,2696.5,0.14700134]
[1739503857681,5.32,2696.7,2696.6,3.70837]
[1739503857970,5.32,2696.7,2696.6,4.54595913]
[1739503858209,5.32,2696.7,2696.6,4.69294567]
[1739503858719,5.32,2696.7,2696.6,7.69294567]
[1739503859410,5.32,2697.3,2696.7,3.0]
[1739503859619,9.02715,2697.5,2696.8,3.85478382]
[1739503859918,9.02719,2697.5,2696.8,3.85478382]
[1739503860583,5.32,2698.2,2697.3,0.7954]
[1739503860776,0.7712,2699.0,2698.9,3.70521]
[1739503861089,0.7712,2699.0,2698.7,3.70546]
[1739503861294,6.1456,2699.3,2698.8,3.70534]
[1739503861592,6.76016,2699.3,2698.8,3.85191238]
[1739503861813,3.70494,2699.1,2698.8,0.14657238]
[1739503862014,3.70494,2699.1,2697.8,0.7966]
[1739503862015,3.70599,2698.4,2697.8,0.7966]
[1739503862234,0.7507,2698.5,2697.9,0.13490877]
[1739503862524,0.7507,2698.5,2697.9,3.13490877]
[1739503862723,3.70604,2698.3,2697.9,0.13490877]
[1739503862928,0.425604,2698.2,2697.9,0.13490877]
[1739503863223,0.425604,2698.2,2698.0,0.13465889]
[1739503863430,0.425604,2698.2,2697.6,3.0]
[1739503863431,0.425604,2698.2,2697.6,6.70694]
[1739503863588,0.425604,2698.2,2697.7,0.13465889]
[1739503863788,4.2559,2698.4,2697.7,3.84141889]
[1739503864296,4.2559,2698.4,2697.7,0.13465889]
[1739503864715,0.55,2698.4,2697.7,0.13465889]
[1739503864914,3.70605,2698.3,2697.7,0.13465889]
[1739503867186,3.70627,2698.2,2697.7,0.13465889]
[1739503867500,6.116232,2698.2,2697.7,0.13465889]